{"text_format":"1","workbook":"xlsx","n_sheets":3,"sheets":["Instrucciones","Reformulación Presupuesto Ad","Resumen  Presupuesto"],"not_rendered":{"charts":0,"images":6,"macros":1,"external_links":0,"defined_names":8,"comments":2,"pivot_tables":0},"unopened":[],"bounds":{"document_bytes":16777216,"sheet_cells":100000,"rows_first":2000,"rows_last":500,"rows_between":2000,"halvings":0,"cell_chars":16384,"cell_head_chars":4096},"cells_cut":0,"cells_raw":0,"read":"whole","date_system":"1900"}

{"sheet":"Instrucciones","index":0,"n_rows":25,"n_cols":10,"rows_kept":25,"cut":false,"hidden":false,"merged":[[22,1,22,16],[25,1,25,16],[1,9,1,11],[2,2,2,17],[5,2,5,17],[23,1,23,16],[24,1,24,16],[3,9,3,10]]}
[]
[null,null,null,null,null,null,null,null,null,"Doc_básico3_presup_reformulado_Ad INSTRUCCIONES"]
[null,null,"SUBVENCIONES DEL AYUNTAMIENTO DE BARCELONA POR EL FORTALECIMIENTO DE LA ECONOMÍA SOCIAL Y SOLIDARIA Y POR LA INTERCOOPERACIÓN EN LA ESTRATEGIA #ESSBCN2030 - FORTALEZCAMOS LA ESS 2023"]
[null,null,null,null,null,null,null,null,null,"FORTALECEMOS LA ESS 2023"]
[]
[null,null,"Aspectos relevantes relacionados con la reformulación"]
[]
[]
[]
[]
[null,"1. Rellenar la pestaña \"Reformulación Presupuesto\" con los datos económicos del proyecto:"]
[null,"1.1  Rellenar los cuadros DATOS BÁSICOS-PREVISIÓN DE GASTOS DEL PROYECTO SUBVENCIONABLE INICIAL, con los datos económicos de la propuesta inicial con subvención otorgada."]
[null,"1.2  Rellenar r los cuadros DATOS BÁSICOS-PREVISIÓN DE GASTOS DEL PROYECTO REFORMULADO, con los datos económicos de la propuesta de reformulación."]
[null,"2. Revisar y llenar la pestaña \"Resumen Presupuesto\" con los datos económicos del proyecto:"]
[null,"3. Imprimir las hojas de las 2 pestañas (Reformulación presupuesto y Resumen Presupuesto). En formato pdf."]
[]
[null,"Pulsa el icono para generar un documento PDF del libro"]
[]
[]
[]
[]
[]
[]
[null,"4. Si la solicitud se presentó por vía telemática, es necesario que registre la documentación, telemáticamente, como trámite específico, dentro de la convocatoria específica como anexión de documentos adicionales y utilice el número de trámite que el sistema de registro le dio en el momento de la presentación de la solicitud de la subvención."]
[null,"5. En caso de que registre la documentación telemáticamente, como instancia genérica, mediante certificado digital, le recomendamos que avise a la dirección de correo electrónico subvencions_ec_solidaria@bcn.cat,para poder realizar un seguimiento, así como también en los casos que presente la documentación a través de una Oficina de Atención Ciudadana del Ayuntamiento, si no ha podido obtener el certificado digital (los requisitos para obtenerlo los encontrará en la Oficina Virtual de Trámites de la Sede Electrónica:https://seuelectronica.ajuntament.barcelona.cat/oficinavirtual/)."]

{"sheet":"Reformulación Presupuesto Ad","index":1,"n_rows":112,"n_cols":10,"rows_kept":112,"cut":false,"hidden":false,"merged":[[6,2,6,5],[3,0,4,8],[1,1,1,8],[18,0,18,3],[10,6,10,7],[18,6,18,8],[103,0,103,3],[104,0,104,3],[105,0,105,3],[106,0,106,3],[98,0,98,3],[99,0,99,3],[100,0,100,3],[101,0,101,3],[102,0,102,3],[107,0,107,3],[108,0,108,3],[109,0,109,3],[110,0,110,3],[111,0,111,3]]}
[]
[null,"Reformulación presupuesto modalidad Ad"]
[]
["SUBVENCIONES DEL AYUNTAMIENTO DE BARCELONA POR EL FORTALECIMIENTO DE LA ECONOMÍA SOCIAL Y SOLIDARIA Y POR LA INTERCOOPERACIÓN EN LA ESTRATEGIA #ESSBCN2030 - FORTALEZCAMOS LA ESS 2023"]
[]
[]
[]
["DATOS BÁSICOS"]
["Nombre de la persona física/ jurídica",null,{"$f":"+IF(H9>Dadesbasiques[[#This Row],[Columna1]],\"ALERTA: La quantia de la subvenció atorgada no pot superar el 80% de la despesa total del projecte a subvencionar\", \" \")","v":" "},null,null,"  "]
["NIF de la persona física/ jurídica",null,{"$f":"+IF(H10>Dadesbasiques[[#This Row],[Columna1]],\"ALERTA: La quantia de la subvenció atorgada no pot superar el 80% de la despesa total del projecte a subvencionar\", \" \")","v":" "}]
["Nombre del proyecto subvencionable",null,{"$f":"+IF(H11>Dadesbasiques[[#This Row],[Columna1]],\"ALERTA: La quantia de la subvenció atorgada no pot superar el 80% de la despesa total del projecte a subvencionar\", \" \")","v":" "},null,null,null,"DATOS BÁSICOS PROJECTO REFORMULADO"]
["Importe total del proyecto subvencionable",null,null,null,null,null,"Importe total del proyecto REFORMULADO"]
["Importe imputable a la subvención municipal",null,null,null,null,null,"Importe imputable a la subvención OTORGADA"]
["Importe de la aportación / Cofinanciación de la organización",{"$f":"+B12-B13","v":0},null,null,null,null,"Importe de la aportación / Cofinanciación de la organización",{"$f":"H12-H13","v":0}]
["% del importe solicitado respecto al total del proyecto subvencionable (*)",{"$f":"B13/B12","v":{"$error":"#DIV/0!"}},null,null,null,null,"% del importe solicitado respecto al proyecto subvencionado ",{"$f":"H13/H12","v":{"$error":"#DIV/0!"}},{"$f":"+IF(H15>Dadesbasiques[[#This Row],[Columna1]],\"*Este porcentaje debe ser igual o menor al porcentaje subvencionado inicialmente.\",\" \")","v":{"$error":"#DIV/0!"}}]
["% del importe solicitado respecto del total del proyecto subvencionable",null,{"$f":"+IF(H16>Dadesbasiques[[#This Row],[Columna1]],\"ALERTA: La quantia de la subvenció atorgada no pot superar el 80% de la despesa total del projecte a subvencionar\", \" \")","v":" "}]
["Data fi del projecte subvencionat (dd/mm/aaaa)",null,{"$f":"+IF(H17>Dadesbasiques[[#This Row],[Columna1]],\"ALERTA: La quantia de la subvenció atorgada no pot superar el 80% de la despesa total del projecte a subvencionar\", \" \")","v":" "}]
[]
["PREVISIÓN DE GASTOS DEL PROYECTO SUBVENCIONABLE",null,null,null,null,null,"PREVISIÓN DE GASTOS DEL PROYECTO REFORMULADO"]
[]
["Partidas","Importe imputable a la subvención municipal","Importe de la aportación / Cofinanciación de la organización","Importe total del proyecto",null,null,"Importe imputable a la subvención municipal","Importe de la aportación / Cofinanciación de la organización","Importe total del proyecto"]
["D1.  Nóminas y seguridad Social (régimen general o régimen de autónomos) del personal propios vinculado al proyecto subvencionable (máximo 40% importe subvención)",{"$f":"SUM(B23:B26)","v":0},{"$f":"SUM(C23:C26)","v":0},{"$f":"DespesesProjecte[[#This Row],[Importe imputable a la subvención municipal]]+DespesesProjecte[[#This Row],[Importe de la aportación / Cofinanciación de la organización]]","v":0},null,null,{"$f":"SUM(G23:G26)","v":0},{"$f":"SUM(H23:H26)","v":0},{"$f":"+G22+H22","v":0}]
[null,null,null,{"$f":"DespesesProjecte[[#This Row],[Importe imputable a la subvención municipal]]+DespesesProjecte[[#This Row],[Importe de la aportación / Cofinanciación de la organización]]","v":0},null,null,null,null,{"$f":"+G23+H23","v":0}]
[null,null,null,{"$f":"SUM(DespesesProjecte[[#This Row],[Importe imputable a la subvención municipal]],DespesesProjecte[[#This Row],[Importe de la aportación / Cofinanciación de la organización]])","v":0},null,null,null,null,0]
[null,null,null,{"$f":"SUM(DespesesProjecte[[#This Row],[Importe imputable a la subvención municipal]],DespesesProjecte[[#This Row],[Importe de la aportación / Cofinanciación de la organización]])","v":0},null,null,null,null,0]
[null,null,null,{"$f":"SUM(DespesesProjecte[[#This Row],[Importe imputable a la subvención municipal]],DespesesProjecte[[#This Row],[Importe de la aportación / Cofinanciación de la organización]])","v":0},null,null,null,null,0]
["TOTAL DE GASTOS DEL PERSONAL (Max 40% del importe imputable a la subvención municipal)",{"$f":"B22","v":0},{"$f":"C22","v":0},{"$f":"D22","v":0},null,null,{"$f":"G22","v":0},{"$f":"H22","v":0},{"$f":"I22","v":0},{"$f":"+IF(G27>H13*0.4,\"ALERTA: Máximo 40% del importe imputable a la subvención municipal\", \" \")","v":" "}]
["D2.  Trabajos realizados por profesionales y empresas externas directamente vinculadas al proyecto subvencionado (diseño, implementación, formación y otras relacionadas con el desarrollo del proyecto)",{"$f":"SUM(B29:B32)","v":0},{"$f":"SUM(C29:C32)","v":0},{"$f":"SUM(DespesesProjecte[[#This Row],[Importe imputable a la subvención municipal]],DespesesProjecte[[#This Row],[Importe de la aportación / Cofinanciación de la organización]])","v":0},null,null,{"$f":"SUM(G29:G32)","v":0},{"$f":"SUM(H29:H32)","v":0},{"$f":"+G28+H28","v":0}]
[null,null,null,{"$f":"SUM(DespesesProjecte[[#This Row],[Importe imputable a la subvención municipal]],DespesesProjecte[[#This Row],[Importe de la aportación / Cofinanciación de la organización]])","v":0},null,null,null,null,{"$f":"+G29+H29","v":0}]
[null,null,null,{"$f":"SUM(DespesesProjecte[[#This Row],[Importe imputable a la subvención municipal]],DespesesProjecte[[#This Row],[Importe de la aportación / Cofinanciación de la organización]])","v":0},null,null,null,null,0]
[null,null,null,{"$f":"SUM(DespesesProjecte[[#This Row],[Importe imputable a la subvención municipal]],DespesesProjecte[[#This Row],[Importe de la aportación / Cofinanciación de la organización]])","v":0},null,null,null,null,0]
[null,null,null,{"$f":"SUM(DespesesProjecte[[#This Row],[Importe imputable a la subvención municipal]],DespesesProjecte[[#This Row],[Importe de la aportación / Cofinanciación de la organización]])","v":0},null,null,null,null,0]
["D.3  Cuotas de inscripción, alquiler de sistemas de software y hardware y mantenimiento. ",{"$f":"SUM(B34:B37)","v":0},{"$f":"SUM(C34:C37)","v":0},{"$f":"SUM(DespesesProjecte[[#This Row],[Importe imputable a la subvención municipal]],DespesesProjecte[[#This Row],[Importe de la aportación / Cofinanciación de la organización]])","v":0},null,null,{"$f":"SUM(G34:G37)","v":0},{"$f":"SUM(H34:H37)","v":0},{"$f":"+G33+H33","v":0}]
[null,null,null,{"$f":"SUM(DespesesProjecte[[#This Row],[Importe imputable a la subvención municipal]],DespesesProjecte[[#This Row],[Importe de la aportación / Cofinanciación de la organización]])","v":0},null,null,null,null,0]
[null,null,null,{"$f":"SUM(DespesesProjecte[[#This Row],[Importe imputable a la subvención municipal]],DespesesProjecte[[#This Row],[Importe de la aportación / Cofinanciación de la organización]])","v":0},null,null,null,null,0]
[null,null,null,{"$f":"SUM(DespesesProjecte[[#This Row],[Importe imputable a la subvención municipal]],DespesesProjecte[[#This Row],[Importe de la aportación / Cofinanciación de la organización]])","v":0},null,null,null,null,0]
[null,null,null,{"$f":"SUM(DespesesProjecte[[#This Row],[Importe imputable a la subvención municipal]],DespesesProjecte[[#This Row],[Importe de la aportación / Cofinanciación de la organización]])","v":0},null,null,null,null,0]
["TOTAL DE OTROS GASTOS DIRECTOS",{"$f":"B28+B33","v":0},{"$f":"C28+C33","v":0},{"$f":"D28+D33","v":0},null,null,{"$f":"G28+G33","v":0},{"$f":"H28+H33","v":0},{"$f":"I28+I33","v":0}]
["TOTAL GASTOS DIRECTOS (aquellas que se identifican directamente con el proyecto subvencionable)",{"$f":"SUM(B27,B38)","v":0},{"$f":"SUM(C27,C38)","v":0},{"$f":"D27+D38","v":0},null,null,{"$f":"SUM(G27,G38)","v":0},{"$f":"SUM(H27,H38)","v":0},{"$f":"I27+I38","v":0}]
["I1. Personal de apoyo al proyecto (nóminas y seguridad social)",{"$f":"SUM(B41:B44)","v":0},{"$f":"SUM(C41:C44)","v":0},{"$f":"SUM(DespesesProjecte[[#This Row],[Importe imputable a la subvención municipal]],DespesesProjecte[[#This Row],[Importe de la aportación / Cofinanciación de la organización]])","v":0},null,null,{"$f":"SUM(G41:G44)","v":0},{"$f":"SUM(H41:H44)","v":0},{"$f":"+G40+H40","v":0}]
[null,null,null,{"$f":"SUM(DespesesProjecte[[#This Row],[Importe imputable a la subvención municipal]],DespesesProjecte[[#This Row],[Importe de la aportación / Cofinanciación de la organización]])","v":0},null,null,null,null,{"$f":"+G41+H41","v":0}]
[null,null,null,{"$f":"SUM(DespesesProjecte[[#This Row],[Importe imputable a la subvención municipal]],DespesesProjecte[[#This Row],[Importe de la aportación / Cofinanciación de la organización]])","v":0},null,null,null,null,0]
[null,null,null,{"$f":"SUM(DespesesProjecte[[#This Row],[Importe imputable a la subvención municipal]],DespesesProjecte[[#This Row],[Importe de la aportación / Cofinanciación de la organización]])","v":0},null,null,null,null,0]
[null,null,null,{"$f":"SUM(DespesesProjecte[[#This Row],[Importe imputable a la subvención municipal]],DespesesProjecte[[#This Row],[Importe de la aportación / Cofinanciación de la organización]])","v":0},null,null,null,null,0]
["I.2 Seguros",{"$f":"SUM(B46:B49)","v":0},{"$f":"SUM(C46:C49)","v":0},{"$f":"SUM(DespesesProjecte[[#This Row],[Importe imputable a la subvención municipal]],DespesesProjecte[[#This Row],[Importe de la aportación / Cofinanciación de la organización]])","v":0},null,null,{"$f":"SUM(G46:G49)","v":0},{"$f":"SUM(H46:H49)","v":0},0]
[null,null,null,{"$f":"SUM(DespesesProjecte[[#This Row],[Importe imputable a la subvención municipal]],DespesesProjecte[[#This Row],[Importe de la aportación / Cofinanciación de la organización]])","v":0},null,null,null,null,0]
[null,null,null,{"$f":"SUM(DespesesProjecte[[#This Row],[Importe imputable a la subvención municipal]],DespesesProjecte[[#This Row],[Importe de la aportación / Cofinanciación de la organización]])","v":0},null,null,null,null,0]
[null,null,null,{"$f":"SUM(DespesesProjecte[[#This Row],[Importe imputable a la subvención municipal]],DespesesProjecte[[#This Row],[Importe de la aportación / Cofinanciación de la organización]])","v":0},null,null,null,null,0]
[null,null,null,{"$f":"SUM(DespesesProjecte[[#This Row],[Importe imputable a la subvención municipal]],DespesesProjecte[[#This Row],[Importe de la aportación / Cofinanciación de la organización]])","v":0},null,null,null,null,0]
["I.3 Amortización",{"$f":"SUM(B51:B54)","v":0},{"$f":"SUM(C51:C54)","v":0},{"$f":"SUM(DespesesProjecte[[#This Row],[Importe imputable a la subvención municipal]],DespesesProjecte[[#This Row],[Importe de la aportación / Cofinanciación de la organización]])","v":0},null,null,{"$f":"SUM(G51:G54)","v":0},{"$f":"SUM(H51:H54)","v":0},0]
[null,null,null,{"$f":"SUM(DespesesProjecte[[#This Row],[Importe imputable a la subvención municipal]],DespesesProjecte[[#This Row],[Importe de la aportación / Cofinanciación de la organización]])","v":0},null,null,null,null,0]
[null,null,null,{"$f":"SUM(DespesesProjecte[[#This Row],[Importe imputable a la subvención municipal]],DespesesProjecte[[#This Row],[Importe de la aportación / Cofinanciación de la organización]])","v":0},null,null,null,null,0]
[null,null,null,{"$f":"SUM(DespesesProjecte[[#This Row],[Importe imputable a la subvención municipal]],DespesesProjecte[[#This Row],[Importe de la aportación / Cofinanciación de la organización]])","v":0},null,null,null,null,0]
[null,null,null,{"$f":"SUM(DespesesProjecte[[#This Row],[Importe imputable a la subvención municipal]],DespesesProjecte[[#This Row],[Importe de la aportación / Cofinanciación de la organización]])","v":0},null,null,null,null,0]
["I.4 Alquiler de bienes inmuebles",{"$f":"SUM(B56:B59)","v":0},{"$f":"SUM(C56:C59)","v":0},{"$f":"SUM(DespesesProjecte[[#This Row],[Importe imputable a la subvención municipal]],DespesesProjecte[[#This Row],[Importe de la aportación / Cofinanciación de la organización]])","v":0},null,null,{"$f":"SUM(G56:G59)","v":0},{"$f":"SUM(H56:H59)","v":0},0]
[null,null,null,{"$f":"SUM(DespesesProjecte[[#This Row],[Importe imputable a la subvención municipal]],DespesesProjecte[[#This Row],[Importe de la aportación / Cofinanciación de la organización]])","v":0},null,null,null,null,0]
[null,null,null,{"$f":"SUM(DespesesProjecte[[#This Row],[Importe imputable a la subvención municipal]],DespesesProjecte[[#This Row],[Importe de la aportación / Cofinanciación de la organización]])","v":0},null,null,null,null,0]
[null,null,null,{"$f":"SUM(DespesesProjecte[[#This Row],[Importe imputable a la subvención municipal]],DespesesProjecte[[#This Row],[Importe de la aportación / Cofinanciación de la organización]])","v":0},null,null,null,null,0]
[null,null,null,{"$f":"SUM(DespesesProjecte[[#This Row],[Importe imputable a la subvención municipal]],DespesesProjecte[[#This Row],[Importe de la aportación / Cofinanciación de la organización]])","v":0},null,null,null,null,0]
["I.5 Adquisición de materiales y bienes consumibles parcialmente imputables al proyecto",{"$f":"SUM(B61:B64)","v":0},{"$f":"SUM(C61:C64)","v":0},{"$f":"SUM(DespesesProjecte[[#This Row],[Importe imputable a la subvención municipal]],DespesesProjecte[[#This Row],[Importe de la aportación / Cofinanciación de la organización]])","v":0},null,null,{"$f":"SUM(G61:G64)","v":0},{"$f":"SUM(H61:H64)","v":0},0]
[null,null,null,{"$f":"SUM(DespesesProjecte[[#This Row],[Importe imputable a la subvención municipal]],DespesesProjecte[[#This Row],[Importe de la aportación / Cofinanciación de la organización]])","v":0},null,null,null,null,0]
[null,null,null,{"$f":"SUM(DespesesProjecte[[#This Row],[Importe imputable a la subvención municipal]],DespesesProjecte[[#This Row],[Importe de la aportación / Cofinanciación de la organización]])","v":0},null,null,null,null,0]
[null,null,null,{"$f":"SUM(DespesesProjecte[[#This Row],[Importe imputable a la subvención municipal]],DespesesProjecte[[#This Row],[Importe de la aportación / Cofinanciación de la organización]])","v":0},null,null,null,null,0]
[null,null,null,{"$f":"SUM(DespesesProjecte[[#This Row],[Importe imputable a la subvención municipal]],DespesesProjecte[[#This Row],[Importe de la aportación / Cofinanciación de la organización]])","v":0},null,null,null,null,0]
["I.6 Mantenimiento de edificios y / o instalaciones",{"$f":"SUM(B66:B69)","v":0},{"$f":"SUM(C66:C69)","v":0},{"$f":"SUM(DespesesProjecte[[#This Row],[Importe imputable a la subvención municipal]],DespesesProjecte[[#This Row],[Importe de la aportación / Cofinanciación de la organización]])","v":0},null,null,{"$f":"SUM(G66:G69)","v":0},{"$f":"SUM(H66:H69)","v":0},0]
[null,null,null,{"$f":"SUM(DespesesProjecte[[#This Row],[Importe imputable a la subvención municipal]],DespesesProjecte[[#This Row],[Importe de la aportación / Cofinanciación de la organización]])","v":0},null,null,null,null,0]
[null,null,null,{"$f":"SUM(DespesesProjecte[[#This Row],[Importe imputable a la subvención municipal]],DespesesProjecte[[#This Row],[Importe de la aportación / Cofinanciación de la organización]])","v":0},null,null,null,null,0]
[null,null,null,{"$f":"SUM(DespesesProjecte[[#This Row],[Importe imputable a la subvención municipal]],DespesesProjecte[[#This Row],[Importe de la aportación / Cofinanciación de la organización]])","v":0},null,null,null,null,0]
[null,null,null,{"$f":"SUM(DespesesProjecte[[#This Row],[Importe imputable a la subvención municipal]],DespesesProjecte[[#This Row],[Importe de la aportación / Cofinanciación de la organización]])","v":0},null,null,null,null,0]
["I.7 Comunicaciones (teléfono, correos, conexión a internet)",{"$f":"SUM(B71:B74)","v":0},{"$f":"SUM(C71:C74)","v":0},{"$f":"SUM(DespesesProjecte[[#This Row],[Importe imputable a la subvención municipal]],DespesesProjecte[[#This Row],[Importe de la aportación / Cofinanciación de la organización]])","v":0},null,null,{"$f":"SUM(G71:G74)","v":0},{"$f":"SUM(H71:H74)","v":0},0]
[null,null,null,{"$f":"SUM(DespesesProjecte[[#This Row],[Importe imputable a la subvención municipal]],DespesesProjecte[[#This Row],[Importe de la aportación / Cofinanciación de la organización]])","v":0},null,null,null,null,0]
[null,null,null,{"$f":"SUM(DespesesProjecte[[#This Row],[Importe imputable a la subvención municipal]],DespesesProjecte[[#This Row],[Importe de la aportación / Cofinanciación de la organización]])","v":0},null,null,null,null,0]
[null,null,null,{"$f":"SUM(DespesesProjecte[[#This Row],[Importe imputable a la subvención municipal]],DespesesProjecte[[#This Row],[Importe de la aportación / Cofinanciación de la organización]])","v":0},null,null,null,null,0]
[null,null,null,{"$f":"SUM(DespesesProjecte[[#This Row],[Importe imputable a la subvención municipal]],DespesesProjecte[[#This Row],[Importe de la aportación / Cofinanciación de la organización]])","v":0},null,null,null,null,0]
["I.8 Gastos financieros",{"$f":"SUM(B76:B79)","v":0},{"$f":"SUM(C76:C79)","v":0},{"$f":"SUM(DespesesProjecte[[#This Row],[Importe imputable a la subvención municipal]],DespesesProjecte[[#This Row],[Importe de la aportación / Cofinanciación de la organización]])","v":0},null,null,{"$f":"SUM(G76:G79)","v":0},{"$f":"SUM(H76:H79)","v":0},0]
[null,null,null,{"$f":"SUM(DespesesProjecte[[#This Row],[Importe imputable a la subvención municipal]],DespesesProjecte[[#This Row],[Importe de la aportación / Cofinanciación de la organización]])","v":0},null,null,null,null,0]
[null,null,null,{"$f":"SUM(DespesesProjecte[[#This Row],[Importe imputable a la subvención municipal]],DespesesProjecte[[#This Row],[Importe de la aportación / Cofinanciación de la organización]])","v":0},null,null,null,null,0]
[null,null,null,{"$f":"SUM(DespesesProjecte[[#This Row],[Importe imputable a la subvención municipal]],DespesesProjecte[[#This Row],[Importe de la aportación / Cofinanciación de la organización]])","v":0},null,null,null,null,0]
[null,null,null,{"$f":"SUM(DespesesProjecte[[#This Row],[Importe imputable a la subvención municipal]],DespesesProjecte[[#This Row],[Importe de la aportación / Cofinanciación de la organización]])","v":0},null,null,null,null,0]
["I.9 Suministros",{"$f":"SUM(B81:B85)","v":0},{"$f":"SUM(C81:C85)","v":0},{"$f":"SUM(DespesesProjecte[[#This Row],[Importe imputable a la subvención municipal]],DespesesProjecte[[#This Row],[Importe de la aportación / Cofinanciación de la organización]])","v":0},null,null,{"$f":"SUM(G81:G85)","v":0},{"$f":"SUM(H81:H85)","v":0},0]
[null,null,null,{"$f":"SUM(DespesesProjecte[[#This Row],[Importe imputable a la subvención municipal]],DespesesProjecte[[#This Row],[Importe de la aportación / Cofinanciación de la organización]])","v":0},null,null,null,null,0]
[null,null,null,{"$f":"SUM(DespesesProjecte[[#This Row],[Importe imputable a la subvención municipal]],DespesesProjecte[[#This Row],[Importe de la aportación / Cofinanciación de la organización]])","v":0},null,null,null,null,0]
[]
[null,null,null,{"$f":"SUM(DespesesProjecte[[#This Row],[Importe imputable a la subvención municipal]],DespesesProjecte[[#This Row],[Importe de la aportación / Cofinanciación de la organización]])","v":0},null,null,null,null,0]
[null,null,null,{"$f":"SUM(DespesesProjecte[[#This Row],[Importe imputable a la subvención municipal]],DespesesProjecte[[#This Row],[Importe de la aportación / Cofinanciación de la organización]])","v":0},null,null,null,null,0]
["I.10 Trabajo realizado por otras empresas, parcialmente imputables al proyecto (limpieza, seguridad...)",{"$f":"SUM(B87:B90)","v":0},{"$f":"SUM(C87:C90)","v":0},{"$f":"SUM(DespesesProjecte[[#This Row],[Importe imputable a la subvención municipal]],DespesesProjecte[[#This Row],[Importe de la aportación / Cofinanciación de la organización]])","v":0},null,null,{"$f":"SUM(G87:G90)","v":0},{"$f":"SUM(H87:H90)","v":0},0]
[null,null,null,{"$f":"SUM(DespesesProjecte[[#This Row],[Importe imputable a la subvención municipal]],DespesesProjecte[[#This Row],[Importe de la aportación / Cofinanciación de la organización]])","v":0},null,null,null,null,0]
[null,null,null,{"$f":"SUM(DespesesProjecte[[#This Row],[Importe imputable a la subvención municipal]],DespesesProjecte[[#This Row],[Importe de la aportación / Cofinanciación de la organización]])","v":0},null,null,null,null,0]
[null,null,null,{"$f":"SUM(DespesesProjecte[[#This Row],[Importe imputable a la subvención municipal]],DespesesProjecte[[#This Row],[Importe de la aportación / Cofinanciación de la organización]])","v":0},null,null,null,null,0]
[null,null,null,{"$f":"SUM(DespesesProjecte[[#This Row],[Importe imputable a la subvención municipal]],DespesesProjecte[[#This Row],[Importe de la aportación / Cofinanciación de la organización]])","v":0},null,null,null,null,0]
["\nTOTAL GASTOS INDIRECTOS (se podrán asignar al proyecto subvencionable haciendo servir un porcentaje de asignación) - Máximo 10% del importe imputable a la subvención municipal",{"$f":"SUM(B40,B45,B50,B55,B60,B65,B70,B75,B80,B86)","v":0},{"$f":"SUM(C40,C45,C50,C55,C60,C65,C70,C75,C80,C86)","v":0},{"$f":"D40+D45+D50+D55+D60+D65+D70+D75+D80+D86","v":0},null,null,{"$f":"SUM(G40,G45,G50,G55,G60,G65,G70,G75,G80,G86)","v":0},{"$f":"SUM(H40,H45,H50,H55,H60,H65,H70,H75,H80,H86)","v":0},{"$f":"I40+I45+I50+I55+I60+I65+I70+I75+I80+I86","v":0},{"$f":"+IF(G91>H13*0.1,\"Máximo 10% importe imputable a la subvención municipal\", \" \")","v":" "}]
["TOTAL DE GASTOS PREVISTOS",{"$f":"SUM(B39+B91)","v":0},{"$f":"SUM(C39+C91)","v":0},{"$f":"SUM(D39+D91)","v":0},null,null,{"$f":"SUM(G39+G91)","v":0},{"$f":"SUM(H39+H91)","v":0},{"$f":"SUM(I39+I91)","v":0}]
[]
[]
[]
[]
[]
[]
["Modalidad Ad. Digitalización:  Facilitar la transformación digital de las empresas y organizaciones de la ESS"]
["1. La cuantía de la subvención otorgada no superará el 80% del gasto total del proyecto a subvencionar."]
["2. El importe máximo de subvención para la modalidad \"d\" del ámbito temático de Creación y consolidación (Ad) es 10.000 €."]
["3. En caso de que la solicitud presentada sobrepase el importe máximo, se considerará como importe solicitado el máximo de lo establecido en la convocatoria."]
["4. Se limita con un máximo del 40% del importe de la subvención para gastos de personal propio que participa de forma directa y debidamente al proyecto subvencionable."]
["5.  Sólo con carácter excepcional, los/las empresarios/as individuales que no tengan personas trabajadoras en plantilla podrán acreditar sus trabajos mediante una declaración responsable acompañada de las declaraciones IRPF (modelo 130) del ejercicio corriente. El precio/hora imputado al proyecto subvencionado no podrá superar la cantidad resultante  de dividir los rendimientos anuales netos del empresario / a individual para 1800. "]
["6.Los gastos de implantación de Software y hardware de carcelería y los sistemas de gestión informatizada no incluyen el gasto de compra."]
["7.En ningún caso de consideran subvencionables los gastos:\n>Los impuestos indirectos cuando sean susceptibles de recuperación y compensación.\n> Los gastos de inversión, incluidas las adquisiciones de bienes inmuebles.\n> Los gastos realizados con fecha anterior al inicio del proyecto y fecha posterior a la finalización del proyecto.\n> Otros gastos que se indiquen en la convocatoria. \n"]
["8. Son imputables en esta modalidad los gastos indirectos, detallados en el apartado 13.3. de les bases reguladoras; con un máximo del 10% del importe de la subvención."]
["9. No pueden imputarse en ningún caso gastos de inversión en la parte subvencionada."]
["10. La retribución de las personas contratadas en el marco del proyecto a subvencionar no puede ser menor al Salario Mínimo Interprofesional (SMI), ni al estipulado en el correspondiente convenio o marco normativo de referencia (punto 7 de las bases 2021: requisitos de los proyectos) "]
["11.  Los proyectos subvencionados han de fomentar actividades de interés público o social, estos deberán ser gratuitos para las personas participantes o en ningún caso el precio ha de suponer un obstáculo para su participación, buscando otras formas de acceso para personas con dificultades económicas. En el caso que exista algún tipo de lucro, tendrá que revertirse en las propias actividades subvencionadas. "]
["12. El Ayuntamiento de Barcelona y sus entidades municipales en ningún caso subvencionaran el mismo proyecto, ejecutado durante el mismo periodo, por otro procedimiento de concesión que no sea el regulado en las bases reguladoras. "]
["13. El/la beneficiario/a no podrá alterar en ningún caso el destino de las subvenciones concedidas."]

{"sheet":"Resumen  Presupuesto","index":2,"n_rows":70,"n_cols":11,"rows_kept":70,"cut":false,"hidden":false,"merged":[[20,6,20,7],[25,6,25,9],[6,9,7,9],[9,1,10,1],[9,2,10,2],[9,3,10,3],[9,4,10,4],[13,0,14,1],[13,2,14,2],[13,3,14,3],[13,4,14,4],[1,2,1,7],[5,0,5,1],[6,0,7,1],[6,2,7,2],[6,3,7,3],[6,4,7,4],[6,6,7,7],[3,0,3,8],[6,8,7,8]]}
[]
[null,null,"Resumen presupuesto modalidad Ad"]
[]
["SUBVENCIONES DEL AYUNTAMIENTO DE BARCELONA POR EL FORTALECIMIENTO DE LA ECONOMÍA SOCIAL Y SOLIDARIA Y POR LA INTERCOOPERACIÓN EN LA ESTRATEGIA #ESSBCN2030 - FORTALEZCAMOS LA ESS 2023",null,null,null,null,null,null,null,null,"MODALIDAD Ad"]
[]
["GASTOS PREVISTOS",null,null,null,null,null,"INGRESOS PREVISTOS"]
["Gastos directos \n(aquellos que se identifican directamente con el proyecto)",null,"Previsión inicial coste total","Previsión reformulada coste total","Importe imputado a la subvención otorgada",null,"Ingresos previstos",null,"Previsión inicial ingreso total","Previsión reformulada ingreso total"]
[]
["Ad","D1.  Nóminas y seguridad Social (régimen general o régimen de autónomos) del personal propios vinculado al proyecto subvencionable (máximo 40% importe subvención)",{"$f":"+'Reformulación Presupuesto Ad'!D22","v":0},{"$f":"+'Reformulación Presupuesto Ad'!I22","v":0},{"$f":"+'Reformulación Presupuesto Ad'!G22","v":0},{"$f":"+IF(D9<0,\"No s'admeten valors negatius\",\"\")","v":""},"A.","Subvención municipal (importe solicitado en la instancia/otorgado)"]
[null,"D2.  Trabajos realizados por profesionales y empresas externas directamente vinculadas al proyecto subvencionado (diseño, implementación, formación y otras relacionadas con el desarrollo del proyecto)",{"$f":"+'Reformulación Presupuesto Ad'!D28","v":0},{"$f":"+'Reformulación Presupuesto Ad'!I28","v":0},{"$f":"+'Reformulación Presupuesto Ad'!G28","v":0},{"$f":"+IF(#REF!<0,\"No s'admeten valors negatius\",\"\")","v":{"$error":"#REF!"}},"B.","Subvenciones de otras administraciones",null,null,{"$f":"+IF(J10<0,\"No s'admeten valors negatius\",\"\")","v":""}]
[null,null,null,null,null,{"$f":"+IF(D10<0,\"No s'admeten valors negatius\",\"\")","v":""},"C.","Subvenciones de entes privados",null,null,""]
[null,"D.3  Cuotas de inscripción, alquiler de sistemas de software y hardware y mantenimiento. ",{"$f":"+'Reformulación Presupuesto Ad'!D33","v":0},{"$f":"+'Reformulación Presupuesto Ad'!I33","v":0},{"$f":"+'Reformulación Presupuesto Ad'!G33","v":0},{"$f":"+IF(D11<0,\"No s'admeten valors negatius\",\"\")","v":""},"D.","Recursos propios de la organización aplicados al proyecto"]
[null,"Total Gastos Directos   ",{"$f":"SUM(C9:C12)","v":0},{"$f":"SUM(D9:D12)","v":0},{"$f":"SUM(E9:E12)","v":0},null,"E.","Taquillaje"]
["Gastos indirectos (máximo 10% subvención)",null,"Previsión inicial","Previsión reformulada","Importe imputado a la subvención",{"$f":"+IF(D13<0,\"No s'admeten valors negatius\",\"\")","v":""},"F.","Cuotas de inscripción"]
[null,null,null,null,null,null,"G.","Venta de Productos"]
[null,null,{"$f":"+'Reformulación Presupuesto Ad'!D91","v":0},{"$f":"+'Reformulación Presupuesto Ad'!I91","v":0},{"$f":"+'Reformulación Presupuesto Ad'!G91","v":0},null,"H","Publicidad y/o Esponsorización"]
[null,null,null,null,null,null,"I.","Otros ingresos"]
[]
[null,null,null,null,null,null,null,"Total Ingresos",{"$f":"SUM(I9:I18)","v":0},{"$f":"SUM(J9:J18)","v":0}]
[null,"Total Gastos Indirectos   ",{"$f":"SUM(C16:C19)","v":0},{"$f":"SUM(D16:D19)","v":0},{"$f":"SUM(E16:E19)","v":0}]
[null,"Total Gastos ",{"$f":"+C13+C20","v":0},{"$f":"+D13+D20","v":0},{"$f":"+E13+E20","v":0},null,"Ingresos menos gastos ",null,{"$f":"+I19-C21","v":0},{"$f":"+J19-D21","v":0}]
[]
[null,null,null,null,null,null,null,null,"% subvencionado inicialmente",{"$f":"I9/C21","v":{"$error":"#DIV/0!"}}]
[]
[null,null,null,null,null,null,null,null,"% subvencionado después de reformular",{"$f":"+J9/D21","v":{"$error":"#DIV/0!"}},"*"]
[null,null,null,null,null,null,"*Este porcentaje debe ser igual o menor al porcentaje subvencionado inicialmente."]
[]
[]
[]
[]
[]
[]
[]
[]
[]
[]
[]
[]
[]
[]
[]
[]
[]
[]
[]
[]
[]
[]
[]
[]
[]
[]
[]
[]
[]
[]
[]
[]
[]
[]
[]
[]
[]
[]
[]
[]
[]
[]
[]
[null,null,0]